[Event "Titled Tuesday Blitz January 03 Late 2023"]
[White "Erdogdu, Mert"]
[Black "Chernov, Mikhail"]
[WhiteFideId "6301495"]
[BlackFideId "24143170"]
[WhiteElo "2413"]
[BlackElo "2205"]
[Result "1-0"]
[Round "08"]
[TimeControl "180+2"]
[Date "2023.01.03"]
[WhiteClock "0:00:17"]
[BlackClock "0:00:05"]

1. e4 {[%clk 0:03:00]}  c5 {[%clk 0:02:59]} 2. Nf3 {[%clk 0:03:00]}  Nc6 {[%clk 0:03:00]} 3. d4 {[%clk 0:03:00]}  cxd4 {[%clk 0:03:01]} 4. Nxd4 {[%clk 0:03:01]}  Nf6 {[%clk 0:03:01]} 5. Nc3 {[%clk 0:03:02]}  d6 {[%clk 0:03:02]} 6. Bg5 {[%clk 0:03:01]}  e6 {[%clk 0:03:02]} 7. Qd2 {[%clk 0:03:01]}  a6 {[%clk 0:03:03]} 8. O-O-O {[%clk 0:03:01]}  Bd7 {[%clk 0:03:04]} 9. f3 {[%clk 0:03:01]}  b5 {[%clk 0:03:04]} 10. Be3 {[%clk 0:03:01]}  Qc7 {[%clk 0:03:01]} 11. g4 {[%clk 0:03:00]}  Ne5 {[%clk 0:02:40]} 12. g5 {[%clk 0:02:53]}  Nh5 {[%clk 0:02:40]} 13. f4 {[%clk 0:02:46]}  Nc4 {[%clk 0:02:39]} 14. Bxc4 {[%clk 0:02:46]}  bxc4 {[%clk 0:02:40]} 15. Kb1 {[%clk 0:02:34]}  Rb8 {[%clk 0:02:39]} 16. Ka1 {[%clk 0:02:34]}  Qa5 {[%clk 0:02:19]} 17. Nde2 {[%clk 0:02:19]}  Be7 {[%clk 0:02:01]} 18. Ng3 {[%clk 0:02:10]}  Nxg3 {[%clk 0:02:00]} 19. hxg3 {[%clk 0:02:11]}  Bc6 {[%clk 0:01:53]} 20. Qd4 {[%clk 0:01:55]}  Qb4 {[%clk 0:01:30]} 21. Bc1 {[%clk 0:01:54]}  f6 {[%clk 0:00:51]} 22. a3 {[%clk 0:01:45]}  Qc5 {[%clk 0:00:50]} 23. Qxc5 {[%clk 0:01:35]}  dxc5 {[%clk 0:00:50]} 24. gxf6 {[%clk 0:01:34]}  gxf6 {[%clk 0:00:49]} 25. Rh5 {[%clk 0:01:34]}  Kf7 {[%clk 0:00:47]} 26. Rdh1 {[%clk 0:01:32]}  Kg7 {[%clk 0:00:46]} 27. Be3 {[%clk 0:01:27]}  f5 {[%clk 0:00:34]} 28. Rh6 {[%clk 0:01:25]}  Bf6 {[%clk 0:00:30]} 29. Bxc5 {[%clk 0:01:18]}  fxe4 {[%clk 0:00:23]} 30. Be3 {[%clk 0:00:36]}  Bd5 {[%clk 0:00:10]} 31. g4 {[%clk 0:00:36]}  Kf7 {[%clk 0:00:06]} 32. Rxh7+ {[%clk 0:00:34]}  Rxh7 {[%clk 0:00:07]} 33. Rxh7+ {[%clk 0:00:34]}  Kg6 {[%clk 0:00:08]} 34. Rd7 {[%clk 0:00:31]}  Bxc3 {[%clk 0:00:07]} 35. bxc3 {[%clk 0:00:30]}  Rh8 {[%clk 0:00:08]} 36. f5+ {[%clk 0:00:26]}  Kf6 {[%clk 0:00:03]} 37. Bd4+ {[%clk 0:00:21]}  e5 {[%clk 0:00:03]} 38. Rxd5 {[%clk 0:00:17]}  exd4 {[%clk 0:00:03]} 39. cxd4 {[%clk 0:00:17]}  Re8 {[%clk 0:00:03]} 40. Rd6+ {[%clk 0:00:15]}  Kf7 {[%clk 0:00:02]} 41. Rh6 {[%clk 0:00:13]}  e3 {[%clk 0:00:02]} 42. Rh1 {[%clk 0:00:14]}  e2 {[%clk 0:00:03]} 43. Re1 {[%clk 0:00:15]}  c3 {[%clk 0:00:03]} 44. Ka2 {[%clk 0:00:15]}  Kf6 {[%clk 0:00:02]} 45. Kb3 {[%clk 0:00:15]}  Kg5 {[%clk 0:00:03]} 46. Kxc3 {[%clk 0:00:16]}  Kxg4 {[%clk 0:00:03]} 47. Kd2 {[%clk 0:00:16]}  Kf3 {[%clk 0:00:04]} 48. f6 {[%clk 0:00:16]}  Kf2 {[%clk 0:00:04]} 49. f7 {[%clk 0:00:16]}  Rf8 {[%clk 0:00:03]} 50. Rxe2+ {[%clk 0:00:16]}  Kf3 {[%clk 0:00:03]} 51. Re7 {[%clk 0:00:16]}  Kf4 {[%clk 0:00:03]} 52. c4 {[%clk 0:00:17]}  Kf5 {[%clk 0:00:04]} 53. d5 {[%clk 0:00:17]}  Kf6 {[%clk 0:00:04]} 54. d6 {[%clk 0:00:17]}  Kg7 {[%clk 0:00:05]} 55. c5 {[%clk 0:00:17]}  Rb8 {[%clk 0:00:05]} 56. Re8 {[%clk 0:00:17]} 1-0


[Site "https://www.chess.com"]

[Event "Titled Tuesday Blitz January 03 Late 2023"]
[White "Bjelobrk, Igor"]
[Black "Winterberg, Lukas"]
[WhiteFideId "4300726"]
[BlackFideId "24622702"]
[WhiteElo "2403"]
[BlackElo "2402"]
[Result "1/2-1/2"]
[Round "08"]
[TimeControl "180+2"]
[Date "2023.01.03"]
[WhiteClock "0:00:11"]
[BlackClock "0:00:32"]

1. Nf3 {[%clk 0:03:00]}  Nf6 {[%clk 0:03:00]} 2. c4 {[%clk 0:03:00]}  e6 {[%clk 0:03:00]} 3. g3 {[%clk 0:03:00]}  d5 {[%clk 0:03:00]} 4. Bg2 {[%clk 0:03:00]}  Be7 {[%clk 0:03:01]} 5. O-O {[%clk 0:03:00]}  O-O {[%clk 0:03:01]} 6. d4 {[%clk 0:03:01]}  dxc4 {[%clk 0:03:01]} 7. Qc2 {[%clk 0:03:00]}  a6 {[%clk 0:03:02]} 8. a4 {[%clk 0:02:59]}  c5 {[%clk 0:03:02]} 9. dxc5 {[%clk 0:02:42]}  Bxc5 {[%clk 0:03:03]} 10. Qxc4 {[%clk 0:02:43]}  b6 {[%clk 0:03:03]} 11. Ne5 {[%clk 0:02:41]}  Ra7 {[%clk 0:03:03]} 12. Nc3 {[%clk 0:02:40]}  Bb7 {[%clk 0:03:02]} 13. Bxb7 {[%clk 0:02:38]}  Rxb7 {[%clk 0:03:03]} 14. Ne4 {[%clk 0:02:34]}  Qd4 {[%clk 0:02:59]} 15. Nxf6+ {[%clk 0:02:01]}  gxf6 {[%clk 0:03:00]} 16. Qxd4 {[%clk 0:02:02]}  Bxd4 {[%clk 0:03:00]} 17. Nf3 {[%clk 0:02:02]}  Bc5 {[%clk 0:02:57]} 18. Bh6 {[%clk 0:02:00]}  Rd8 {[%clk 0:02:56]} 19. Rac1 {[%clk 0:01:53]}  Rbd7 {[%clk 0:02:52]} 20. Ne1 {[%clk 0:01:45]}  Nc6 {[%clk 0:02:44]} 21. Nf3 {[%clk 0:01:32]}  a5 {[%clk 0:02:29]} 22. Kg2 {[%clk 0:01:29]}  Nd4 {[%clk 0:02:19]} 23. Nxd4 {[%clk 0:01:25]}  Rxd4 {[%clk 0:02:20]} 24. b3 {[%clk 0:01:24]}  R4d5 {[%clk 0:02:07]} 25. Rc2 {[%clk 0:01:21]}  f5 {[%clk 0:02:07]} 26. Rb1 {[%clk 0:01:17]}  f6 {[%clk 0:02:05]} 27. Rbb2 {[%clk 0:01:04]}  Kf7 {[%clk 0:01:58]} 28. Bd2 {[%clk 0:01:03]}  e5 {[%clk 0:01:50]} 29. Kf1 {[%clk 0:00:58]}  Ke6 {[%clk 0:01:44]} 30. Ra2 {[%clk 0:00:54]}  Rd4 {[%clk 0:01:32]} 31. Bxa5 {[%clk 0:00:47]}  Rd1+ {[%clk 0:01:25]} 32. Kg2 {[%clk 0:00:44]}  Bxf2 {[%clk 0:01:26]} 33. Rc6+ {[%clk 0:00:24]}  R8d6 {[%clk 0:01:25]} 34. Rxd6+ {[%clk 0:00:23]}  Kxd6 {[%clk 0:01:16]} 35. Rd2+ {[%clk 0:00:16]}  Rxd2 {[%clk 0:01:15]} 36. Bxd2 {[%clk 0:00:17]}  Bd4 {[%clk 0:01:14]} 37. e3 {[%clk 0:00:12]}  Bb2 {[%clk 0:01:10]} 38. Kf3 {[%clk 0:00:12]}  Kd5 {[%clk 0:01:10]} 39. b4 {[%clk 0:00:10]}  Kc4 {[%clk 0:01:05]} 40. a5 {[%clk 0:00:10]}  bxa5 {[%clk 0:01:04]} 41. bxa5 {[%clk 0:00:11]}  Kb5 {[%clk 0:01:01]} 42. e4 {[%clk 0:00:11]}  fxe4+ {[%clk 0:00:57]} 43. Kxe4 {[%clk 0:00:11]}  Ba3 {[%clk 0:00:47]} 44. Kf5 {[%clk 0:00:11]}  Be7 {[%clk 0:00:44]} 45. g4 {[%clk 0:00:11]}  Bd8 {[%clk 0:00:44]} 46. h4 {[%clk 0:00:10]}  Bxa5 {[%clk 0:00:41]} 47. Bh6 {[%clk 0:00:09]}  Bd8 {[%clk 0:00:40]} 48. Bg7 {[%clk 0:00:10]}  Kc4 {[%clk 0:00:38]} 49. g5 {[%clk 0:00:09]}  fxg5 {[%clk 0:00:39]} 50. hxg5 {[%clk 0:00:09]}  Kd5 {[%clk 0:00:32]} 51. Bxe5 {[%clk 0:00:09]}  Bxg5 {[%clk 0:00:31]} 52. Kxg5 {[%clk 0:00:09]}  Kxe5 {[%clk 0:00:31]} 53. Kh6 {[%clk 0:00:10]}  Kf6 {[%clk 0:00:32]} 54. Kxh7 {[%clk 0:00:11]} 1/2-1/2


[Site "https://www.chess.com"]

[Event "Titled Tuesday Blitz January 03 Late 2023"]
[White "Blanco Acevedo, Cristobal Jose"]
[Black "Skvortsov, Andrei"]
[WhiteFideId "3900525"]
[BlackFideId "24108600"]
[WhiteElo "2310"]
[BlackElo "2313"]
[Result "0-1"]
[Round "08"]
[TimeControl "180+2"]
[Date "2023.01.03"]
[WhiteClock "0:00:12"]
[BlackClock "0:01:16"]

1. e4 {[%clk 0:03:00]}  e6 {[%clk 0:03:00]} 2. d4 {[%clk 0:03:00]}  d5 {[%clk 0:03:00]} 3. Nc3 {[%clk 0:02:59]}  Nf6 {[%clk 0:03:00]} 4. e5 {[%clk 0:03:00]}  Nfd7 {[%clk 0:03:01]} 5. f4 {[%clk 0:03:00]}  c5 {[%clk 0:03:01]} 6. Nf3 {[%clk 0:03:00]}  Nc6 {[%clk 0:03:02]} 7. Be3 {[%clk 0:03:01]}  a6 {[%clk 0:03:01]} 8. Qd2 {[%clk 0:03:00]}  b5 {[%clk 0:03:00]} 9. a3 {[%clk 0:02:56]}  Rb8 {[%clk 0:02:58]} 10. dxc5 {[%clk 0:02:56]}  Bxc5 {[%clk 0:02:58]} 11. Nd4 {[%clk 0:02:55]}  Nxd4 {[%clk 0:02:55]} 12. Bxd4 {[%clk 0:02:55]}  Qb6 {[%clk 0:02:53]} 13. Rd1 {[%clk 0:02:54]}  Bxd4 {[%clk 0:02:53]} 14. Qxd4 {[%clk 0:02:54]}  Qxd4 {[%clk 0:02:47]} 15. Rxd4 {[%clk 0:02:55]}  f6 {[%clk 0:02:47]} 16. exf6 {[%clk 0:02:53]}  Nxf6 {[%clk 0:02:48]} 17. g3 {[%clk 0:02:49]}  Kd7 {[%clk 0:02:37]} 18. Bh3 {[%clk 0:02:47]}  Kc6 {[%clk 0:02:37]} 19. Bg2 {[%clk 0:02:24]}  Kc5 {[%clk 0:02:36]} 20. Rd2 {[%clk 0:02:24]}  Re8 {[%clk 0:02:34]} 21. O-O {[%clk 0:02:20]}  b4 {[%clk 0:02:34]} 22. axb4+ {[%clk 0:02:15]}  Rxb4 {[%clk 0:02:32]} 23. b3 {[%clk 0:02:15]}  Bd7 {[%clk 0:02:28]} 24. Re1 {[%clk 0:02:14]}  Rbb8 {[%clk 0:02:18]} 25. f5 {[%clk 0:02:00]}  exf5 {[%clk 0:02:16]} 26. Rxe8 {[%clk 0:02:00]}  Bxe8 {[%clk 0:02:11]} 27. Nxd5 {[%clk 0:01:53]}  Ne4 {[%clk 0:02:02]} 28. Bxe4 {[%clk 0:01:40]}  fxe4 {[%clk 0:02:02]} 29. Ne3 {[%clk 0:01:40]}  Bc6 {[%clk 0:01:59]} 30. Kf2 {[%clk 0:01:31]}  Rf8+ {[%clk 0:01:56]} 31. Ke2 {[%clk 0:01:31]}  a5 {[%clk 0:01:55]} 32. c3 {[%clk 0:01:19]}  Bb5+ {[%clk 0:01:53]} 33. c4 {[%clk 0:01:18]}  Bc6 {[%clk 0:01:53]} 34. Ra2 {[%clk 0:01:18]}  Kb4 {[%clk 0:01:51]} 35. Ra1 {[%clk 0:01:00]}  Ra8 {[%clk 0:01:44]} 36. Nc2+ {[%clk 0:01:00]}  Kc3 {[%clk 0:01:43]} 37. Kd1 {[%clk 0:00:24]}  Rd8+ {[%clk 0:01:36]} 38. Kc1 {[%clk 0:00:23]}  Rf8 {[%clk 0:01:30]} 39. Ne3 {[%clk 0:00:20]}  Rf3 {[%clk 0:01:19]} 40. Nd1+ {[%clk 0:00:20]}  Kb4 {[%clk 0:01:18]} 41. Kc2 {[%clk 0:00:17]}  Rxb3 {[%clk 0:01:16]} 42. Rxa5 {[%clk 0:00:16]}  Kxa5 {[%clk 0:01:14]} 43. Kxb3 {[%clk 0:00:16]}  Ba4+ {[%clk 0:01:15]} 44. Kc3 {[%clk 0:00:15]}  Bxd1 {[%clk 0:01:16]} 45. Kd4 {[%clk 0:00:15]}  Bf3 {[%clk 0:01:16]} 46. h4 {[%clk 0:00:12]}  Kb6 {[%clk 0:01:16]} 0-1


[Site "https://www.chess.com"]

[Event "Titled Tuesday Blitz January 03 Late 2023"]
[White "Papp, Levente"]
[Black "Senthil, Maran K"]
[WhiteFideId "751243"]
[BlackFideId "25035681"]
[WhiteElo "2353"]
[BlackElo "2209"]
[Result "1-0"]
[Round "08"]
[TimeControl "180+2"]
[Date "2023.01.03"]
[WhiteClock "0:00:12"]
[BlackClock "0:00:08"]

1. c4 {[%clk 0:03:00]}  c5 {[%clk 0:02:59]} 2. g3 {[%clk 0:02:59]}  g6 {[%clk 0:02:58]} 3. Bg2 {[%clk 0:02:59]}  Bg7 {[%clk 0:02:58]} 4. Nc3 {[%clk 0:03:00]}  Nc6 {[%clk 0:02:58]} 5. e4 {[%clk 0:02:59]}  Nf6 {[%clk 0:02:57]} 6. Nge2 {[%clk 0:02:59]}  O-O {[%clk 0:02:57]} 7. O-O {[%clk 0:03:00]}  d6 {[%clk 0:02:57]} 8. d3 {[%clk 0:03:00]}  Rb8 {[%clk 0:02:56]} 9. Rb1 {[%clk 0:03:01]}  a6 {[%clk 0:02:56]} 10. a3 {[%clk 0:03:01]}  b5 {[%clk 0:02:56]} 11. cxb5 {[%clk 0:03:02]}  axb5 {[%clk 0:02:57]} 12. b4 {[%clk 0:03:03]}  Nd7 {[%clk 0:02:54]} 13. bxc5 {[%clk 0:02:55]}  Nxc5 {[%clk 0:02:55]} 14. Rxb5 {[%clk 0:02:38]}  Ba6 {[%clk 0:02:40]} 15. Rxb8 {[%clk 0:02:33]}  Qxb8 {[%clk 0:02:41]} 16. d4 {[%clk 0:02:27]}  Nb3 {[%clk 0:02:24]} 17. Be3 {[%clk 0:02:25]}  Nba5 {[%clk 0:02:11]} 18. Qa4 {[%clk 0:02:14]}  Qb3 {[%clk 0:02:04]} 19. Qxb3 {[%clk 0:02:05]}  Nxb3 {[%clk 0:02:05]} 20. Rd1 {[%clk 0:02:04]}  Rc8 {[%clk 0:01:56]} 21. Bf1 {[%clk 0:01:28]}  Ncxd4 {[%clk 0:01:14]} 22. Nxd4 {[%clk 0:01:16]}  Bxf1 {[%clk 0:01:07]} 23. Nd5 {[%clk 0:01:06]}  Kf8 {[%clk 0:00:28]} 24. Kxf1 {[%clk 0:01:01]}  Nc5 {[%clk 0:00:22]} 25. f3 {[%clk 0:00:55]}  Ra8 {[%clk 0:00:22]} 26. Nb5 {[%clk 0:00:54]}  Ra5 {[%clk 0:00:21]} 27. Bxc5 {[%clk 0:00:48]}  Rxb5 {[%clk 0:00:21]} 28. Bb4 {[%clk 0:00:46]}  Bb2 {[%clk 0:00:20]} 29. Rd2 {[%clk 0:00:42]}  Ba1 {[%clk 0:00:19]} 30. Ra2 {[%clk 0:00:38]}  Be5 {[%clk 0:00:18]} 31. f4 {[%clk 0:00:34]}  Bd4 {[%clk 0:00:18]} 32. a4 {[%clk 0:00:33]}  Rb7 {[%clk 0:00:18]} 33. a5 {[%clk 0:00:33]}  Ke8 {[%clk 0:00:18]} 34. a6 {[%clk 0:00:29]}  Ra7 {[%clk 0:00:18]} 35. Nc3 {[%clk 0:00:26]}  Ra8 {[%clk 0:00:12]} 36. Nb5 {[%clk 0:00:24]}  Bb6 {[%clk 0:00:13]} 37. Bc3 {[%clk 0:00:14]}  Kd7 {[%clk 0:00:12]} 38. Bd4 {[%clk 0:00:12]}  Kc6 {[%clk 0:00:13]} 39. Bxb6 {[%clk 0:00:12]}  Kxb6 {[%clk 0:00:12]} 40. Nc3 {[%clk 0:00:11]}  e6 {[%clk 0:00:12]} 41. a7 {[%clk 0:00:11]}  f6 {[%clk 0:00:10]} 42. Ke2 {[%clk 0:00:11]}  Rxa7 {[%clk 0:00:08]} 43. Rxa7 {[%clk 0:00:11]}  Kxa7 {[%clk 0:00:09]} 44. Nb5+ {[%clk 0:00:12]}  Kb7 {[%clk 0:00:09]} 45. Nxd6+ {[%clk 0:00:13]}  Kc6 {[%clk 0:00:10]} 46. Nc4 {[%clk 0:00:13]}  Kc5 {[%clk 0:00:09]} 47. Kd3 {[%clk 0:00:13]}  f5 {[%clk 0:00:09]} 48. e5 {[%clk 0:00:13]}  Kd5 {[%clk 0:00:09]} 49. Nd6 {[%clk 0:00:12]}  g5 {[%clk 0:00:09]} 50. Nf7 {[%clk 0:00:10]}  g4 {[%clk 0:00:09]} 51. Ng5 {[%clk 0:00:10]}  h6 {[%clk 0:00:09]} 52. Nf7 {[%clk 0:00:10]}  h5 {[%clk 0:00:10]} 53. Ng5 {[%clk 0:00:10]}  Kc6 {[%clk 0:00:06]} 54. Nxe6 {[%clk 0:00:11]}  Kd7 {[%clk 0:00:07]} 55. Ng5 {[%clk 0:00:11]}  Ke7 {[%clk 0:00:07]} 56. Kd4 {[%clk 0:00:12]}  h4 {[%clk 0:00:07]} 57. Kd5 {[%clk 0:00:11]}  Kf8 {[%clk 0:00:08]} 58. e6 {[%clk 0:00:11]}  hxg3 {[%clk 0:00:07]} 59. hxg3 {[%clk 0:00:11]}  Ke7 {[%clk 0:00:08]} 60. Ke5 {[%clk 0:00:12]} 1-0


[Site "https://www.chess.com"]

[Event "Titled Tuesday Blitz January 03 Late 2023"]
[White "Goncalves, Davi Sulzbacher"]
[Black "Goroshkov, Maksym"]
[WhiteFideId "2154510"]
[BlackFideId "14142716"]
[WhiteElo "2282"]
[BlackElo "2287"]
[Result "1/2-1/2"]
[Round "08"]
[TimeControl "180+2"]
[Date "2023.01.03"]
[WhiteClock "0:00:01"]
[BlackClock "0:00:18"]

1. Nf3 {[%clk 0:03:00]}  Nf6 {[%clk 0:02:59]} 2. g3 {[%clk 0:03:01]}  g6 {[%clk 0:03:00]} 3. Bg2 {[%clk 0:03:02]}  Bg7 {[%clk 0:02:58]} 4. O-O {[%clk 0:03:03]}  O-O {[%clk 0:02:59]} 5. d4 {[%clk 0:03:03]}  d5 {[%clk 0:02:59]} 6. Bf4 {[%clk 0:03:02]}  c6 {[%clk 0:02:59]} 7. c3 {[%clk 0:03:02]}  Bf5 {[%clk 0:03:00]} 8. Nbd2 {[%clk 0:03:01]}  Qc8 {[%clk 0:02:59]} 9. Re1 {[%clk 0:03:00]}  Bh3 {[%clk 0:02:58]} 10. Bh1 {[%clk 0:03:00]}  h6 {[%clk 0:02:50]} 11. e4 {[%clk 0:02:54]}  dxe4 {[%clk 0:02:49]} 12. Nxe4 {[%clk 0:02:54]}  Nxe4 {[%clk 0:02:46]} 13. Rxe4 {[%clk 0:02:54]}  Re8 {[%clk 0:02:45]} 14. Qd2 {[%clk 0:02:48]}  g5 {[%clk 0:02:43]} 15. Nxg5 {[%clk 0:02:28]}  hxg5 {[%clk 0:02:42]} 16. Bxg5 {[%clk 0:02:29]}  Bf5 {[%clk 0:02:37]} 17. Rxe7 {[%clk 0:01:45]}  Rxe7 {[%clk 0:02:35]} 18. Bxe7 {[%clk 0:01:46]}  Nd7 {[%clk 0:02:30]} 19. Qg5 {[%clk 0:01:37]}  Bg6 {[%clk 0:02:28]} 20. h4 {[%clk 0:01:35]}  Nf8 {[%clk 0:02:10]} 21. Bxf8 {[%clk 0:01:30]}  Kxf8 {[%clk 0:01:58]} 22. Re1 {[%clk 0:01:19]}  Qd8 {[%clk 0:01:47]} 23. Qc5+ {[%clk 0:01:10]}  Kg8 {[%clk 0:01:44]} 24. h5 {[%clk 0:01:09]}  Bh7 {[%clk 0:01:39]} 25. Re7 {[%clk 0:01:02]}  b6 {[%clk 0:01:26]} 26. Qg5 {[%clk 0:01:02]}  Kh8 {[%clk 0:01:16]} 27. Bxc6 {[%clk 0:00:20]}  Rc8 {[%clk 0:01:01]} 28. Re8+ {[%clk 0:00:20]}  Qxe8 {[%clk 0:01:01]} 29. Bxe8 {[%clk 0:00:20]}  Rxe8 {[%clk 0:01:02]} 30. h6 {[%clk 0:00:20]}  Bf8 {[%clk 0:01:00]} 31. Qf6+ {[%clk 0:00:18]}  Kg8 {[%clk 0:01:00]} 32. Qg5+ {[%clk 0:00:16]}  Bg6 {[%clk 0:01:00]} 33. f4 {[%clk 0:00:17]}  Re4 {[%clk 0:00:50]} 34. f5 {[%clk 0:00:13]}  Be7 {[%clk 0:00:50]} 35. h7+ {[%clk 0:00:06]}  Kh8 {[%clk 0:00:50]} 36. f6 {[%clk 0:00:03]}  Bd8 {[%clk 0:00:42]} 37. Kf2 {[%clk 0:00:02]}  Re6 {[%clk 0:00:40]} 38. Qd5 {[%clk 0:00:02]}  Bxf6 {[%clk 0:00:40]} 39. Qa8+ {[%clk 0:00:01]}  Kxh7 {[%clk 0:00:39]} 40. Qxa7 {[%clk 0:00:01]}  Bh5 {[%clk 0:00:28]} 41. a4 {[%clk 0:00:02]}  Re2+ {[%clk 0:00:28]} 42. Kf1 {[%clk 0:00:03]}  Rxb2 {[%clk 0:00:21]} 43. Qd7 {[%clk 0:00:03]}  Bg6 {[%clk 0:00:20]} 44. Qd6 {[%clk 0:00:03]}  Kg7 {[%clk 0:00:20]} 45. Ke1 {[%clk 0:00:03]}  Bg5 {[%clk 0:00:19]} 46. Qe5+ {[%clk 0:00:02]}  Bf6 {[%clk 0:00:20]} 47. Qd6 {[%clk 0:00:02]}  Rb3 {[%clk 0:00:19]} 48. Qc6 {[%clk 0:00:02]}  Rb2 {[%clk 0:00:18]} 49. Qd6 {[%clk 0:00:01]} 1/2-1/2


[Site "https://www.chess.com"]

[Event "Titled Tuesday Blitz January 03 Late 2023"]
[White "Karas, Marek"]
[Black "Rosen, Eric"]
[WhiteFideId "14928558"]
[BlackFideId "2032562"]
[WhiteElo "2227"]
[BlackElo "2349"]
[Result "0-1"]
[Round "08"]
[TimeControl "180+2"]
[Date "2023.01.03"]
[WhiteClock "0:00:01"]
[BlackClock "0:00:11"]

1. d4 {[%clk 0:02:59]}  d5 {[%clk 0:03:00]} 2. c4 {[%clk 0:02:54]}  e6 {[%clk 0:03:01]} 3. Nf3 {[%clk 0:02:54]}  Nf6 {[%clk 0:03:01]} 4. Nc3 {[%clk 0:02:54]}  a6 {[%clk 0:03:01]} 5. cxd5 {[%clk 0:02:51]}  exd5 {[%clk 0:03:02]} 6. Bg5 {[%clk 0:02:50]}  Be7 {[%clk 0:03:02]} 7. e3 {[%clk 0:02:46]}  O-O {[%clk 0:03:03]} 8. Bd3 {[%clk 0:02:43]}  Re8 {[%clk 0:03:03]} 9. O-O {[%clk 0:02:42]}  Nbd7 {[%clk 0:03:03]} 10. h3 {[%clk 0:02:35]}  Nf8 {[%clk 0:02:59]} 11. Bf4 {[%clk 0:02:33]}  Ng6 {[%clk 0:02:59]} 12. Bh2 {[%clk 0:02:33]}  Bd6 {[%clk 0:02:59]} 13. Bxd6 {[%clk 0:02:29]}  Qxd6 {[%clk 0:03:00]} 14. Qc2 {[%clk 0:02:26]}  Bd7 {[%clk 0:02:48]} 15. Bf5 {[%clk 0:02:24]}  Bxf5 {[%clk 0:02:31]} 16. Qxf5 {[%clk 0:02:25]}  Rad8 {[%clk 0:02:31]} 17. Rac1 {[%clk 0:02:20]}  Ne7 {[%clk 0:02:24]} 18. Qd3 {[%clk 0:02:17]}  Nc8 {[%clk 0:02:17]} 19. Ne5 {[%clk 0:02:14]}  Nd7 {[%clk 0:02:13]} 20. Nxd7 {[%clk 0:02:04]}  Qxd7 {[%clk 0:02:14]} 21. Ne2 {[%clk 0:01:59]}  Nd6 {[%clk 0:02:11]} 22. Ng3 {[%clk 0:01:50]}  g6 {[%clk 0:02:09]} 23. Rc2 {[%clk 0:01:49]}  c6 {[%clk 0:02:09]} 24. Rfc1 {[%clk 0:01:41]}  h5 {[%clk 0:02:10]} 25. Qd1 {[%clk 0:01:32]}  Qe6 {[%clk 0:02:05]} 26. Qf3 {[%clk 0:01:29]}  Kg7 {[%clk 0:01:57]} 27. Ne2 {[%clk 0:01:29]}  Ne4 {[%clk 0:01:47]} 28. Nf4 {[%clk 0:01:27]}  Qf5 {[%clk 0:01:47]} 29. Nd3 {[%clk 0:01:22]}  Qxf3 {[%clk 0:01:42]} 30. gxf3 {[%clk 0:01:23]}  Nd6 {[%clk 0:01:43]} 31. Nc5 {[%clk 0:01:18]}  Re7 {[%clk 0:01:42]} 32. b3 {[%clk 0:01:14]}  Nf5 {[%clk 0:01:39]} 33. f4 {[%clk 0:01:10]}  Nd6 {[%clk 0:01:36]} 34. Kg2 {[%clk 0:01:10]}  Rde8 {[%clk 0:01:36]} 35. Nd3 {[%clk 0:01:06]}  f6 {[%clk 0:01:32]} 36. a4 {[%clk 0:01:02]}  Kf7 {[%clk 0:01:31]} 37. Nc5 {[%clk 0:00:59]}  Rg8 {[%clk 0:01:30]} 38. Rg1 {[%clk 0:00:56]}  g5 {[%clk 0:01:02]} 39. fxg5 {[%clk 0:00:53]}  fxg5 {[%clk 0:01:03]} 40. Nd3 {[%clk 0:00:49]}  Kf6 {[%clk 0:01:03]} 41. Ne5 {[%clk 0:00:49]}  Reg7 {[%clk 0:00:59]} 42. f3 {[%clk 0:00:48]}  Kf5 {[%clk 0:00:55]} 43. Kf2 {[%clk 0:00:48]}  Nf7 {[%clk 0:00:50]} 44. Nxf7 {[%clk 0:00:43]}  Rxf7 {[%clk 0:00:49]} 45. b4 {[%clk 0:00:44]}  Rgf8 {[%clk 0:00:38]} 46. Rf1 {[%clk 0:00:40]}  g4 {[%clk 0:00:30]} 47. hxg4+ {[%clk 0:00:34]}  hxg4 {[%clk 0:00:30]} 48. Ke1 {[%clk 0:00:29]}  gxf3 {[%clk 0:00:29]} 49. Rxf3+ {[%clk 0:00:26]}  Ke4 {[%clk 0:00:27]} 50. Rxf7 {[%clk 0:00:24]}  Rxf7 {[%clk 0:00:28]} 51. b5 {[%clk 0:00:17]}  cxb5 {[%clk 0:00:22]} 52. axb5 {[%clk 0:00:18]}  Kxe3 {[%clk 0:00:21]} 53. b6 {[%clk 0:00:09]}  Rf6 {[%clk 0:00:17]} 54. Rb2 {[%clk 0:00:01]}  Kd3 {[%clk 0:00:11]} 0-1


[Site "https://www.chess.com"]

[Event "Titled Tuesday Blitz January 03 Late 2023"]
[White "Karthik, Advaith"]
[Black "Martynov, Pavel"]
[WhiteFideId "30946050"]
[BlackFideId "4101260"]
[WhiteElo "2075"]
[BlackElo "2414"]
[Result "0-1"]
[Round "08"]
[TimeControl "180+2"]
[Date "2023.01.03"]
[WhiteClock "0:00:28"]
[BlackClock "0:01:05"]

1. d4 {[%clk 0:03:00]}  d5 {[%clk 0:02:59]} 2. c4 {[%clk 0:03:00]}  e6 {[%clk 0:02:59]} 3. Nc3 {[%clk 0:03:00]}  c5 {[%clk 0:02:59]} 4. cxd5 {[%clk 0:02:59]}  exd5 {[%clk 0:03:00]} 5. Nf3 {[%clk 0:02:59]}  Nc6 {[%clk 0:03:00]} 6. Bg5 {[%clk 0:02:58]}  Be7 {[%clk 0:03:00]} 7. Bxe7 {[%clk 0:02:58]}  Ngxe7 {[%clk 0:03:01]} 8. e3 {[%clk 0:02:56]}  c4 {[%clk 0:03:01]} 9. e4 {[%clk 0:02:56]}  Be6 {[%clk 0:02:55]} 10. exd5 {[%clk 0:02:55]}  Nxd5 {[%clk 0:02:55]} 11. Rc1 {[%clk 0:02:50]}  O-O {[%clk 0:02:48]} 12. Bxc4 {[%clk 0:02:36]}  Nxc3 {[%clk 0:02:43]} 13. Rxc3 {[%clk 0:02:36]}  Bxc4 {[%clk 0:02:44]} 14. Rxc4 {[%clk 0:02:37]}  Qa5+ {[%clk 0:02:44]} 15. Qd2 {[%clk 0:02:28]}  Rfe8+ {[%clk 0:02:40]} 16. Kf1 {[%clk 0:02:06]}  Qa6 {[%clk 0:02:38]} 17. Qd3 {[%clk 0:01:50]}  Nb4 {[%clk 0:02:30]} 18. Qb3 {[%clk 0:01:46]}  Rac8 {[%clk 0:02:20]} 19. Nd2 {[%clk 0:01:46]}  Qe6 {[%clk 0:01:34]} 20. g3 {[%clk 0:01:32]}  Qe2+ {[%clk 0:01:32]} 21. Kg2 {[%clk 0:01:32]}  Nd3 {[%clk 0:01:31]} 22. Rxc8 {[%clk 0:01:17]}  Rxc8 {[%clk 0:01:30]} 23. Qxb7 {[%clk 0:01:01]}  Qxf2+ {[%clk 0:01:24]} 24. Kh3 {[%clk 0:01:01]}  Rf8 {[%clk 0:01:18]} 25. Ne4 {[%clk 0:00:31]}  Qf3 {[%clk 0:01:08]} 26. Nf6+ {[%clk 0:00:31]}  Qxf6 {[%clk 0:01:08]} 27. Kg2 {[%clk 0:00:28]}  Qf2+ {[%clk 0:01:05]} 0-1


[Site "https://www.chess.com"]